bitfinex/quotes_ETHUSD_20240827
["timestamp","ask_amount","ask_price","bid_price","bid_amount"]
[1724794525766,3.93213583,2567.9,2567.4,0.55]
[1724794525917,0.03788583,2567.9,2567.4,0.55]
[1724794527016,0.07032657,2567.9,2567.3,0.50504771]
[1724794527260,0.03788583,2567.9,2567.3,0.50504771]
[1724794527471,3.92636074,2568.2,2567.3,0.50504771]
[1724794527765,0.03788583,2567.8,2567.3,0.50504771]
[1724794527966,0.03788583,2567.8,2567.4,0.07788237]
[1724794528137,0.03788583,2567.7,2567.4,0.07788237]
[1724794528334,0.03788583,2567.7,2567.5,0.55]
[1724794528521,3.92632074,2568.2,2567.5,0.55]
[1724794528723,3.89395,2568.1,2567.4,0.55]
[1724794528954,3.93183583,2568.1,2567.4,0.95550477]
[1724794530773,0.03788583,2568.1,2567.4,0.95550477]
[1724794531069,0.03788583,2568.1,2567.5,0.07788236]
[1724794531379,0.03788583,2568.1,2567.6,0.55]
[1724794531527,0.03788583,2568.1,2567.7,0.07788237]
[1724794531867,3.93182583,2568.1,2567.8,0.55]
[1724794532173,4.00393634,2568.1,2567.8,0.55]
[1724794532966,4.00393634,2568.1,2567.7,0.55]
[1724794535450,5.20432513,2568.1,2567.7,0.55]
[1724794535772,4.00393634,2568.1,2567.7,0.55]
[1724794536877,3.8941,2568.0,2567.7,0.55]
[1724794537062,4.00411648,2568.0,2567.5,0.55]
[1724794538478,3.89423,2567.9,2567.5,0.55]
[1724794538978,0.11001648,2567.8,2567.5,0.55]
[1724794539479,0.14245722,2567.8,2567.5,0.55]
[1724794539661,0.11001648,2567.8,2567.5,0.55]
[1724794539869,3.89486,2567.5,2567.1,9.7942]
[1724794540036,3.89508,2567.4,2566.8,12.7942]
[1724794540448,7.79072,2567.2,2566.8,11.07362]
[1724794540582,3.89597,2566.8,2566.3,9.8746]
[1724794540788,0.03244074,2567.1,2565.8,9.8746]
[1724794540789,3.89613,2566.7,2565.8,9.8746]
[1724794540990,3.89628,2566.6,2565.9,1.39808816]
[1724794541293,3.89636,2566.5,2565.9,1.39808816]
[1724794541789,4.00583194,2566.4,2565.9,1.39808816]
[1724794542292,0.10933194,2566.4,2565.9,1.39808816]
[1724794542858,3.8967,2566.3,2565.9,1.39808816]
[1724794543148,4.00551833,2566.3,2565.9,1.39808816]
[1724794544033,4.00551833,2566.3,2564.3,9.3996]
[1724794544034,3.89842,2565.2,2564.3,9.3996]
[1724794544166,7.26053044,2565.1,2564.3,9.3996]
[1724794544518,8.03720229,2565.1,2564.3,9.3996]
[1724794544661,12.04408757,2565.1,2564.3,9.3996]
[1724794544860,15.04408757,2565.1,2564.3,9.3996]
[1724794545062,15.04408757,2565.1,2563.9,9.3996]
[1724794545502,16.04461975,2565.1,2563.9,9.3996]
[1724794545701,13.04461975,2565.1,2563.9,9.3996]
[1724794545900,5.0398582,2565.1,2563.9,9.3996]
[1724794546064,4.03932602,2565.1,2563.9,9.3996]
[1724794552406,7.93780602,2565.1,2563.9,9.3996]
[1724794553784,10.93780602,2565.1,2563.9,9.3996]
[1724794560179,10.93780602,2565.1,2564.5,9.2404]
[1724794567002,16.41816822,2565.1,2564.5,9.2404]
[1724794567207,16.41816822,2565.1,2563.7,10.37]
[1724794567406,16.41816822,2565.1,2564.3,9.8277]
[1724794567407,26.21512822,2565.1,2564.3,9.8277]
[1724794567612,28.40839853,2565.1,2564.3,9.8277]
[1724794567836,28.40839853,2565.1,2564.0,9.6135]
[1724794570113,27.039863,2565.1,2564.0,9.6135]
[1724794571838,23.141383,2565.1,2564.0,9.6135]
[1724794573616,0.10840528,2565.1,2564.7,9.3226]
[1724794573861,3.89821,2565.3,2564.8,0.55]
[1724794574025,3.89797,2565.5,2564.8,0.62797402]
[1724794574228,3.89805,2565.4,2565.0,9.32435]
[1724794574443,0.09975443,2565.3,2565.1,1.49023128]
[1724794574617,3.89797,2565.5,2565.1,1.49023128]
[1724794575054,0.09975443,2565.4,2565.1,1.49023128]
[1724794576829,3.99781443,2565.4,2565.1,1.49023128]
[1724794579033,7.79696,2565.1,2565.0,0.00175]
[1724794579545,7.89671443,2565.1,2565.0,0.00175]
[1724794580928,13.79519443,2565.1,2565.0,0.00175]
[1724794581141,18.58589654,2565.1,2565.0,0.00175]
[1724794581353,22.48437654,2565.1,2565.0,0.00175]
[1724794581627,26.96283752,2565.1,2565.0,0.00175]
[1724794582472,28.53893429,2565.1,2565.0,0.00175]
[1724794583357,28.94259236,2565.1,2565.0,0.00175]
[1724794584041,26.96283752,2565.1,2565.0,0.00175]
[1724794584438,29.33854333,2565.1,2565.0,0.00175]
[1724794585039,26.96283752,2565.1,2565.0,0.00175]
[1724794585516,29.73449429,2565.1,2565.0,0.00175]
[1724794586483,26.96283752,2565.1,2565.0,0.00175]
[1724794587039,30.44058022,2565.1,2565.0,0.00175]
[1724794587482,27.16656066,2565.1,2565.0,0.00175]
[1724794588447,31.12222923,2565.1,2565.0,0.00175]
[1724794589374,27.16656066,2565.1,2565.0,0.00175]
[1724794591074,27.16656066,2565.1,2565.0,0.00095]
[1724794592422,12.25777399,2565.1,2565.0,0.00095]
[1724794592573,13.86229315,2565.1,2565.0,0.00095]
[1724794592915,9.89671443,2565.1,2565.0,0.00095]
[1724794593783,7.89671443,2565.1,2565.0,0.00095]
[1724794594309,9.89671443,2565.1,2565.0,0.00095]
[1724794595018,7.89671443,2565.1,2565.0,0.00095]
[1724794595314,12.89671443,2565.1,2565.0,0.00095]
[1724794595541,13.10043757,2565.1,2565.0,0.00095]
[1724794595714,15.60805687,2565.1,2565.0,0.00095]
[1724794596608,19.57363559,2565.1,2565.0,0.00095]
[1724794596817,23.47211559,2565.1,2565.0,0.00095]
[1724794597133,23.40501687,2565.1,2565.0,0.00095]
[1724794597343,19.50653687,2565.1,2565.0,0.00095]
[1724794597842,23.40501687,2565.1,2565.0,0.00095]
[1724794598004,19.50653687,2565.1,2565.0,0.00095]
[1724794602036,33.00821687,2565.1,2565.0,0.00095]
[1724794602220,33.84773376,2565.1,2565.0,0.00095]
[1724794602428,33.84773376,2565.1,2565.0,1e-05]
[1724794602625,3.9003,2563.9,2563.8,9.0573]
[1724794602933,6.39471049,2563.9,2563.8,9.0573]
[1724794603134,4.02897844,2563.9,2563.8,9.0573]
[1724794603537,6.8268467,2563.9,2563.8,9.0573]
[1724794604207,6.82613061,2563.9,2563.8,9.0573]
[1724794605234,3.9005,2563.8,2562.8,9.1034]
[1724794605434,1.19848475,2563.0,2562.8,9.1034]
[1724794605605,1.19848475,2563.0,2562.9,10.2598]
[1724794605807,1.59797967,2563.2,2562.9,10.2598]
[1724794605808,1.19848475,2563.1,2562.9,11.58578]
[1724794606024,0.0962377,2563.0,2562.9,11.58578]
[1724794606220,0.0962377,2563.0,2562.9,11.03578]
[1724794606419,1.29472245,2563.0,2562.9,11.03578]
[1724794607639,0.0962377,2563.0,2562.9,11.58578]
[1724794608150,1.197754,2563.4,2563.0,9.8815]
[1724794608440,1.197754,2563.4,2562.9,1.87598]
[1724794608441,1.197754,2563.5,2563.2,9.8815]
[1724794608599,1.197754,2563.5,2563.4,9.8815]
[1724794609097,1.197754,2563.5,2563.4,10.4315]
[1724794609328,1.197754,2563.5,2563.4,11.47465]
[1724794610242,1.28346236,2563.5,2563.4,11.47465]
[1724794610546,1.2834764,2563.5,2563.4,11.47465]
[1724794611512,1.28348448,2563.5,2563.4,11.47465]
[1724794612348,1.28349379,2563.5,2563.4,11.47465]
[1724794612651,1.28350011,2563.5,2563.4,11.47465]
[1724794613153,1.28349338,2563.5,2563.4,11.47465]
[1724794613746,1.68368803,2563.5,2563.4,11.47465]
[1724794614131,2.08195469,2563.5,2563.4,9.8815]
[1724794614434,2.48120395,2563.5,2563.4,9.8815]
[1724794614619,2.51364469,2563.5,2562.9,9.8781]
[1724794614824,1.59634485,2563.0,2562.9,9.8781]
[1724794615073,1.59634485,2563.0,2562.9,10.46230654]
[1724794615213,1.59634485,2563.0,2562.0,9.8781]
[1724794615214,3.90289,2562.2,2562.0,9.8781]
[1724794615416,0.03244074,2562.1,2561.5,9.8781]
[1724794615647,1.19687368,2561.8,2561.6,0.98781]
[1724794616258,1.28258204,2561.7,2561.6,0.98781]
[1724794616549,0.08570836,2561.7,2561.6,0.98781]
[1724794616722,1.19687368,2561.9,2561.6,0.98781]
[1724794616921,0.08570836,2561.7,2561.6,0.98781]
[1724794617131,1.19687368,2561.9,2561.6,0.98781]
[1724794617341,0.08570836,2561.7,2561.6,0.98781]
[1724794617541,1.5960729,2562.0,2561.5,9.8781]
[1724794617542,1.19687368,2562.0,2561.5,9.8781]
[1724794617727,0.08570836,2561.7,2561.5,9.8781]
[1724794617912,1.19687368,2561.9,2561.5,9.8781]
[1724794618139,0.08374303,2561.6,2561.5,9.8781]
[1724794618345,1.19687368,2561.9,2561.5,10.86591]
[1724794618657,1.19687368,2561.9,2561.5,9.8781]
[1724794618658,0.03244074,2561.8,2561.5,9.8781]
[1724794618813,1.22931442,2561.8,2561.5,9.8781]
[1724794619017,0.08374303,2561.7,2561.5,9.8781]
[1724794619320,1.22931442,2561.8,2561.5,9.8781]
[1724794619526,0.08374303,2561.6,2561.5,9.8781]
[1724794619795,0.03244074,2561.8,2561.5,9.8781]
[1724794619924,0.08374303,2561.6,2561.5,9.8781]
[1724794620126,0.03244074,2561.8,2561.5,9.8781]
[1724794620318,0.08374303,2561.6,2561.5,9.8781]
[1724794620518,0.03244074,2561.8,2561.5,10.4281]
[1724794620717,0.03244074,2561.8,2561.6,0.55]
[1724794621660,1.19687368,2562.1,2561.7,0.07807485]
[1724794621860,1.19687368,2562.1,2561.8,0.55]
[1724794622035,1.19687368,2562.2,2561.8,0.55]
[1724794622727,1.19687368,2562.3,2561.7,0.55]
[1724794623099,1.22931442,2562.2,2561.7,0.55]
[1724794623223,0.03244074,2562.2,2561.7,1.697091]
[1724794623417,1.22931442,2562.3,2561.7,1.697091]
[1724794625160,0.08374303,2562.2,2561.7,1.697091]
[1724794625765,3.98663303,2562.2,2561.7,1.697091]
[1724794625929,1.28061671,2562.2,2561.7,1.697091]
[1724794626359,0.11618377,2562.2,2561.7,1.697091]
[1724794626665,4.01909377,2562.2,2561.7,1.697091]
[1724794627449,0.11618377,2562.2,2561.7,1.697091]
[1724794627695,3.90305,2562.1,2561.7,1.697091]
[1724794628204,0.08386469,2562.0,2561.7,1.697091]
[1724794629860,0.08386469,2562.0,2561.7,0.55]
[1724794630057,0.08386469,2562.0,2561.6,0.55]
[1724794630262,0.11630543,2562.0,2561.5,9.8781]
[1724794630464,3.90385,2561.6,2561.1,9.8892]
[1724794630772,0.08181826,2561.5,2561.1,9.8892]
[1724794630968,0.08181826,2561.5,2561.1,11.17812]
[1724794631466,0.03244074,2561.7,2561.1,11.17812]
[1724794631804,0.08181826,2561.6,2561.1,11.17812]
[1724794632767,0.08181826,2561.6,2561.2,0.55]
[1724794637225,9.9501,2561.5,2560.5,9.1591]
[1724794637429,9.9501,2561.5,2560.2,0.1256296]
[1724794637430,4.12047791,2560.6,2560.2,0.1256296]
[1724794637607,11.6205,2561.2,2560.2,0.1256296]
[1724794637608,0.03244074,2560.5,2560.2,0.1256296]
[1724794637789,0.11370125,2560.5,2560.2,0.1256296]
[1724794637977,0.03244074,2560.5,2560.2,0.1256296]
[1724794638319,0.08126051,2560.4,2560.2,0.1256296]
[1724794638722,3.98689051,2560.4,2560.2,0.1256296]
[1724794638883,4.79762735,2560.4,2560.2,0.1256296]
[1724794639082,4.83006809,2560.4,2560.2,0.1256296]
[1724794639274,8.73569809,2560.4,2560.2,0.1256296]
[1724794639485,12.856176,2560.4,2560.2,0.1256296]
[1724794640299,19.761806,2560.4,2560.2,0.1256296]
[1724794640708,15.64132809,2560.4,2560.2,0.1256296]
[1724794640939,33.287936,2560.4,2560.2,0.1256296]
[1724794641232,28.20132101,2560.3,2560.2,0.1256296]
[1724794641433,31.41600892,2560.3,2560.2,0.1256296]
[1724794641729,31.49459095,2560.3,2560.2,0.1256296]
[1724794642524,27.37411304,2560.3,2560.2,0.1256296]
[1724794642731,31.49459095,2560.3,2560.2,0.1256296]
[1724794643330,31.49459095,2560.3,2558.1,3.90914]
[1724794643331,5.90754,2559.2,2558.5,9.8746]
[1724794643503,0.03244074,2559.1,2558.1,9.8746]
[1724794643702,3.90808,2558.8,2558.1,9.8746]
[1724794643932,0.03244074,2558.7,2558.1,9.8746]
[1724794644133,0.03244074,2558.7,2558.2,0.98796]
[1724794644338,0.07580957,2558.6,2558.2,0.98796]
[1724794644697,0.03244074,2558.5,2558.2,0.98796]
[1724794644937,0.10783361,2558.5,2558.0,0.005]
[1724794646009,4.01639361,2558.5,2558.0,0.005]
[1724794647740,0.10783361,2558.5,2558.0,0.005]
[1724794649604,0.10783361,2558.5,2557.6,3.0806296]
[1724794649797,0.10783361,2558.5,2557.7,1.84552296]
[1724794650009,4.01637361,2558.5,2557.7,1.84552296]
[1724794651155,3.90976,2557.7,2557.6,0.0806296]
[1724794651301,7.85196074,2557.7,2557.6,0.0806296]
[1724794651504,11.76172074,2557.7,2557.6,0.0806296]
[1724794651741,14.83663578,2557.7,2557.6,0.0806296]
[1724794651974,35.33211957,2557.7,2557.6,0.0806296]
[1724794652502,31.42235957,2557.7,2557.6,0.0806296]
[1724794654317,35.90821552,2557.7,2557.6,0.0806296]
[1724794655039,31.96601478,2557.7,2557.6,0.0806296]
[1724794655543,35.87577478,2557.7,2557.6,0.0806296]
[1724794656610,31.96601478,2557.7,2557.6,0.0806296]
[1724794659352,31.96601478,2557.7,2557.6,0.0306296]
[1724794659353,35.87577478,2557.7,2557.6,0.0306296]
[1724794661953,35.29967883,2557.7,2557.6,0.0306296]
[1724794664137,3.91114,2556.8,2556.1,9.0185]
[1724794664458,0.03244074,2556.7,2556.2,1.45185]
[1724794664673,0.10217319,2556.7,2556.2,1.45185]
[1724794664833,0.03244074,2556.7,2556.2,1.45185]
[1724794665033,0.06973245,2556.6,2556.2,1.45185]
[1724794667096,0.06973245,2556.6,2556.2,0.55]
[1724794667264,5.91374,2555.1,2554.1,10.6816]
[1724794667457,5.91374,2555.1,2554.1,1.0]
[1724794667458,2.0,2554.8,2554.1,1.0]
[1724794667661,18.56386822,2555.1,2554.1,1.0]
[1724794667662,2.0,2554.5,2554.1,1.0]
[1724794667836,4.13685422,2554.2,2554.1,1.0]
[1724794668042,4.16929496,2554.2,2554.1,1.0]
[1724794668341,30.90509668,2554.2,2554.1,1.0]
[1724794669271,30.90509668,2554.2,2552.5,0.1256296]
[1724794669272,7.83484,2552.7,2552.5,0.1256296]
[1724794669485,19.75674,2552.7,2552.5,0.1256296]
[1724794669640,19.82372102,2552.7,2552.5,0.1256296]
[1724794669983,19.82372102,2552.7,2550.1,3.97127]
[1724794669984,2.0,2550.6,2550.0,14.01960745]
[1724794670165,0.05,2552.2,2550.0,14.01960745]
[1724794670166,9.84282,2550.1,2550.0,14.01960745]
[1724794670665,5.92218,2549.6,2549.5,2.47e-06]
[1724794670983,5.92218,2549.6,2546.3,7.94435679]
[1724794670984,2.0,2547.7,2546.9,2.00492962]
[1724794671194,9.9219,2547.9,2546.9,2.00492962]
[1724794671195,5.92618,2547.0,2546.9,2.00492962]
[1724794671488,3.92726,2546.3,2546.2,0.11675962]
[1724794671781,3.92726,2546.3,2546.1,0.1690384]
[1724794671782,9.88728074,2546.2,2546.1,8.02e-06]
[1724794671997,9.88728074,2546.2,2545.2,0.01666667]
[1724794671998,2.0,2545.6,2545.2,0.01666667]
[1724794672204,2.0,2545.6,2545.5,1e-05]
[1724794672205,25.98274462,2545.6,2545.5,1e-05]
[1724794672419,9.8576,2545.3,2545.2,0.01666667]
[1724794672624,3.09838,2545.3,2542.6,3.93292]
[1724794672824,3.09838,2545.3,2541.0,0.26666667]
[1724794672825,2.0,2543.5,2542.3,9.6816]
[1724794673110,2.0,2542.7,2541.0,0.26666667]
[1724794673412,0.05,2542.3,2541.0,0.26666667]
[1724794673559,2.0,2541.1,2541.0,0.21988491]
[1724794673762,2.78,2541.1,2541.0,0.21988491]
[1724794674010,2.0,2540.1,2538.0,3.94005]
[1724794674315,2.0,2540.1,2537.1,9.6894]
[1724794674316,10.6537,2540.1,2537.1,9.6894]
[1724794674492,25.52165754,2540.1,2540.0,13.06483804]
[1724794674661,13.86334,2539.5,2536.8,0.63068182]
[1724794674864,9.87772,2538.8,2538.7,5.37953117]
[1724794675087,20.18172,2538.8,2538.7,5.37953117]
[1724794675296,20.18172,2538.8,2536.8,0.63068182]
[1724794675297,2.0,2537.1,2536.8,0.63068182]
[1724794675483,0.78,2538.8,2536.8,0.63068182]
[1724794675689,0.784,2539.1,2536.8,0.63068182]
[1724794675894,0.05,2542.1,2536.8,0.63068182]
[1724794675895,2.0,2540.2,2538.6,3.93912]
[1724794676100,0.05,2541.8,2539.7,3.93744]
[1724794676101,2.0,2541.8,2539.7,3.93744]
[1724794676419,6.37879212,2545.6,2542.5,3.93305]
[1724794676420,2.0,2544.2,2542.5,3.93305]
[1724794676559,2.0,2544.7,2542.6,9.9976]
[1724794676761,2.0,2544.7,2542.7,1.00476]
[1724794676962,9.4348,2546.5,2543.3,3.93187]
[1724794676963,2.0,2544.6,2543.3,3.93187]
[1724794677259,0.05,2545.9,2542.6,9.9976]
[1724794677260,2.0,2545.0,2543.4,0.07862396]
[1724794677521,2.0,2546.0,2543.7,5.73655862]
[1724794677673,2.0,2546.0,2543.5,0.55]
[1724794677674,2.0,2545.9,2544.2,5.73655862]
[1724794677888,3.92565,2547.4,2543.5,0.55]
[1724794677889,2.0,2546.8,2545.3,5.73655862]
[1724794678200,3.92601,2547.2,2545.4,4.12365586]
[1724794678201,2.0,2546.9,2545.4,4.12365586]
[1724794678406,2.0,2546.6,2545.6,3.92831]
[1724794678606,2.0,2547.1,2545.7,4.55668065]
[1724794678762,1.75,2547.2,2545.4,0.55]
[1724794678763,3.92593,2547.2,2545.4,4.47855]
[1724794678962,0.45716074,2547.2,2545.8,3.92798]
[1724794679262,2.0,2547.1,2545.9,3.55]
[1724794679808,3.925,2547.8,2545.9,3.55]
[1724794679809,2.0,2547.4,2546.0,13.91175]
[1724794679962,2.0,2547.4,2546.1,0.55]
[1724794680162,2.0,2547.4,2546.1,4.47756]
[1724794680469,0.03900287,2547.3,2546.1,5.68426296]
[1724794680660,2.0,2547.5,2546.2,3.0]
[1724794680867,2.0,2547.8,2546.3,0.55]
[1724794681174,0.03644602,2547.7,2546.8,3.92645]
[1724794681389,2.0,2548.3,2546.9,3.55]
[1724794681607,0.03644602,2547.6,2547.1,3.82597]
[1724794681774,2.0,2548.3,2547.2,0.55]
[1724794681975,0.04444115,2547.5,2547.2,0.55]
[1724794682178,2.0,2548.3,2547.1,0.55]
[1724794682499,2.0,2548.3,2547.2,3.92586]
[1724794682738,2.0,2547.7,2547.0,0.55]
[1724794683023,2.0,2547.7,2546.0,13.9118]
[1724794683024,3.92528,2547.6,2546.0,13.9118]
[1724794683172,0.44038849,2547.7,2546.1,1.11122588]
[1724794683376,2.0,2547.2,2546.0,9.9841]
[1724794683822,0.04514367,2547.1,2546.0,9.9841]
[1724794683974,0.04514367,2547.1,2546.2,3.9274]
[1724794684182,2.0,2548.0,2546.2,3.92737]
[1724794684382,0.04413027,2547.0,2546.5,3.92694]
[1724794684578,5.92469,2548.0,2546.8,0.0222111]
[1724794684812,0.04413027,2546.9,2546.8,0.0222111]
[1724794685137,3.9248,2547.9,2546.8,0.0222111]
[1724794685428,0.04413027,2546.9,2546.8,0.0222111]
[1724794685591,2.0,2548.0,2546.8,0.0222111]
[1724794685800,0.04355503,2546.9,2546.8,4.94857221]
[1724794685976,5.92419,2548.3,2546.8,7.4987011]
[1724794686180,4.36412314,2548.5,2546.8,3.5722111]
[1724794686484,0.04239119,2548.2,2547.7,9.9043]
[1724794686678,2.0,2549.1,2547.7,9.9043]
[1724794686679,0.1810176,2549.8,2548.5,3.92384]
[1724794686880,0.1810176,2549.8,2548.6,3.92368]
[1724794687103,0.03936508,2549.7,2548.7,0.55]
[1724794687299,0.03936508,2549.7,2549.4,3.92233]
[1724794687541,0.1810176,2549.8,2549.5,0.55]
[1724794687737,5.91931,2551.5,2549.7,5.90271287]
[1724794688033,2.0,2551.5,2549.8,6.92175]
[1724794688255,2.0,2550.2,2548.3,0.392418]
[1724794688552,0.50458423,2551.4,2547.6,9.9043]
[1724794688553,2.0,2548.8,2547.6,9.9043]
[1724794688835,3.92387,2548.6,2547.6,9.9043]
[1724794689138,0.04391411,2548.5,2547.6,9.9043]
[1724794689493,0.04391411,2548.5,2547.6,10.89473]
[1724794689697,3.92233,2549.6,2547.7,5.90271287]
[1724794690004,0.04316506,2549.5,2548.7,3.92348]
[1724794690196,3.92132,2550.2,2548.8,0.07845649]
[1724794690387,0.04316506,2549.4,2548.8,3.92335]
[1724794690589,0.04316506,2549.4,2548.7,9.1532]
[1724794690590,3.9209,2550.5,2549.2,3.92279]
[1724794690905,2.0,2550.6,2549.3,4.47259]
[1724794691239,2.0,2550.6,2549.4,3.92247]
[1724794691440,2.0,2550.6,2549.5,0.55]
[1724794691732,5.92067,2550.6,2549.5,0.55]
[1724794691928,3.92021,2550.9,2549.6,3.92217]
[1724794692230,3.91992,2551.1,2549.8,3.9218]
[1724794692531,3.91992,2551.1,2549.7,0.55]
[1724794692532,3.91973,2551.2,2549.9,4.4717]
[1724794692890,2.0,2550.6,2549.9,0.55]
[1724794693092,3.91944,2551.4,2547.9,1.16359206]
[1724794693093,2.0,2549.6,2547.9,1.16359206]
[1724794693314,3.92286,2549.2,2547.9,1.16359206]
[1724794693505,3.92326,2548.9,2547.8,9.1532]
[1724794694640,5.92265,2549.3,2548.0,3.92463]
[1724794694992,3.92265,2549.3,2548.0,3.92463]
[1724794695197,3.92238,2549.5,2548.2,3.92429]
[1724794695400,5.92128,2550.2,2548.7,3.92356]
[1724794695711,3.92108,2550.4,2549.0,3.92296]
[1724794695894,3.92108,2550.4,2549.1,3.942296]
[1724794696248,2.0,2550.5,2549.2,9.1532]
[1724794696249,3.27713,2550.3,2549.2,9.1532]
[1724794696396,3.27713,2550.3,2549.3,0.55]
[1724794696594,3.92264,2549.4,2548.4,15.05591287]
[1724794696798,3.92287,2549.2,2548.4,9.1532]
[1724794697025,3.92301,2549.1,2548.4,9.1532]
[1724794697442,3.92287,2549.2,2548.4,9.1532]
[1724794697742,3.92296,2549.1,2548.4,9.1532]
[1724794697911,3.92251,2549.4,2548.4,9.1532]
[1724794697912,3.92281,2549.2,2548.4,9.1532]
[1724794698312,0.04244016,2549.1,2548.5,0.07847199]
[1724794698744,0.04244016,2549.1,2548.4,13.99242]
[1724794698745,3.96541016,2549.1,2549.0,0.0222111]
[1724794698903,11.81155016,2549.1,2549.0,0.0222111]
[1724794699244,11.81155016,2549.1,2549.0,0.01627543]
[1724794699541,15.73462016,2549.1,2549.0,0.01627543]
[1724794700945,22.65769016,2549.1,2549.0,5.43e-06]
[1724794701351,3.92529,2547.6,2546.7,9.6513]
[1724794701650,5.92498,2547.8,2546.7,9.6513]
[1724794701955,5.92498,2547.8,2545.6,5.90271287]
[1724794701956,3.92682,2546.6,2545.9,9.6513]
[1724794702343,3.9276,2546.1,2545.9,9.6513]
[1724794702557,2.0,2545.8,2544.9,9.8513]
[1724794702855,3.92867,2545.4,2544.9,9.8513]
[1724794703365,3.92897,2545.2,2544.9,9.8513]
[1724794703514,3.92799,2545.9,2544.9,9.8513]
[1724794703714,2.0,2546.1,2544.9,9.8513]
[1724794704060,3.92805,2545.8,2544.9,9.8513]
[1724794704361,3.92825,2545.7,2544.9,9.8513]
[1724794704651,5.92694,2546.6,2545.0,0.07858851]
[1724794704953,9.063,2548.1,2545.0,0.07858851]
[1724794704954,3.92552,2547.5,2546.2,3.92741]
[1724794705110,5.92527,2547.6,2546.3,0.07853353]
[1724794705307,5.92527,2547.6,2546.3,0.40059435]
[1724794705308,5.92529,2547.6,2546.3,0.40059435]
[1724794705632,2.0,2546.9,2545.5,10.2429]
[1724794705976,2.0,2546.2,2544.8,9.8513]
[1724794706181,3.92876,2545.4,2544.8,9.8513]
[1724794706376,2.0,2545.5,2544.5,0.005]
[1724794706552,3.9294,2545.0,2544.5,0.005]
[1724794706954,5.92852,2545.5,2544.5,0.005]
[1724794706955,7.85978,2544.6,2544.5,0.005]
[1724794707448,11.78967,2544.6,2544.5,0.005]
[1724794707793,11.78967,2544.6,2541.7,9.2258]
[1724794707794,2.0,2543.3,2541.7,9.2258]
[1724794708092,2.0,2543.3,2539.3,6.14371875]
[1724794708093,5.9338,2542.1,2540.9,9.771]
[1724794708251,2.0,2541.7,2540.9,9.771]
[1724794708592,3.93242,2543.0,2540.1,9.771]
[1724794708593,3.93564,2540.9,2540.1,9.771]
[1724794708796,3.93564,2540.9,2539.5,0.1196766]
[1724794708797,2.0,2540.6,2539.5,0.1196766]
[1724794709103,3.93549,2541.0,2539.5,0.1196766]
[1724794709104,5.93733,2539.8,2539.5,0.1196766]
[1724794709261,3.93731,2539.9,2539.5,0.1196766]
[1724794709464,5.90271287,2541.5,2539.5,0.1196766]
[1724794709465,5.93762,2539.6,2539.5,0.1196766]
[1724794709649,3.93683,2540.2,2539.5,0.1196766]
[1724794709852,2.0,2541.0,2539.5,0.1196766]
[1724794710151,3.9347,2541.5,2540.1,3.93683]
[1724794710489,3.9347,2541.5,2539.9,3.93713]
[1724794710490,5.93453,2541.6,2540.2,4.01538808]
[1724794710676,0.52400918,2542.5,2539.5,5.44026526]
[1724794710677,2.0,2541.2,2539.5,5.44026526]
[1724794710876,2.0,2539.8,2539.5,0.1196766]
[1724794711047,3.93762,2539.6,2539.5,0.1196766]
[1724794711251,5.93732,2539.8,2539.5,0.1196766]
[1724794711252,3.93748,2539.7,2539.5,0.1196766]
[1724794711448,2.0,2540.8,2539.5,0.1196766]
[1724794711655,3.93551,2541.0,2539.5,0.1196766]
[1724794711877,3.9337,2542.2,2539.8,9.0256]
[1724794711878,5.9337,2542.2,2539.8,9.0256]
[1724794712179,2.0,2543.0,2541.4,9.0256]
[1724794712365,3.93234,2543.1,2541.4,9.0256]
[1724794712366,3.93234,2543.1,2541.8,3.93421]
[1724794712550,2.0,2543.3,2541.9,4.01272586]
[1724794712753,3.93144,2543.6,2542.3,3.93343]
[1724794712949,2.0,2544.0,2542.8,3.93261]
[1724794713193,3.9305,2544.3,2542.9,12.8574429]
[1724794713366,3.92824,2545.7,2543.0,0.55]
[1724794713367,2.0,2544.7,2543.0,0.55]
[1724794713586,3.9774,2546.3,2543.0,0.55]
[1724794713587,2.0,2545.1,2544.0,3.93081]
[1724794713800,3.92798,2545.9,2543.1,5.98134205]
[1724794713801,5.92865,2545.4,2544.1,7.48063]
[1724794714113,2.0,2545.4,2544.1,0.55]
[1724794714320,3.93033,2544.4,2544.0,0.55]
[1724794714518,2.0,2544.6,2544.0,0.55]
[1724794715017,2.0,2545.5,2544.0,0.55]
[1724794715168,5.92863,2545.5,2544.2,3.93047]
[1724794715366,5.92863,2545.5,2544.4,9.7788]
[1724794715367,2.0,2545.5,2544.4,9.7788]
[1724794715603,2.0,2546.0,2544.5,0.07859569]
[1724794715785,2.0,2546.3,2545.1,3.9291]
[1724794716008,2.0,2546.3,2545.2,0.55]
[1724794716199,3.92665,2546.7,2545.4,3.9286]
[1724794716414,3.92624,2547.0,2545.8,3.92799]
[1724794716415,2.0,2547.0,2545.8,3.92799]
[1724794716598,5.9267,2546.7,2545.5,0.55]
[1724794716975,3.92683,2546.6,2545.5,3.55]
[1724794717384,4.34021161,2547.3,2545.5,8.226354]
[1724794717385,5.92632,2547.0,2545.5,8.226354]
[1724794717713,3.92589,2547.2,2546.0,3.9277]
[1724794717929,2.0,2547.0,2546.1,0.55]
[1724794718074,3.92635,2546.9,2546.1,0.55]
[1724794718279,3.92742,2546.2,2546.1,0.55]
[1724794718585,3.92773,2546.0,2545.6,9.7788]
[1724794718785,3.9279,2545.9,2545.7,0.55]
[1724794718987,3.9279,2545.9,2544.8,9.7788]
[1724794719193,2.0,2546.2,2544.8,9.7788]
[1724794719194,3.92803,2545.8,2544.9,0.55]
[1724794719378,3.92772,2546.0,2544.9,0.55]
[1724794719582,1.95396173,2548.4,2545.6,3.92822]
[1724794719583,2.0,2547.0,2545.6,3.92822]